bitfinex/quotes_ETHUSD_20240718
["timestamp","ask_amount","ask_price","bid_price","bid_amount"]
[1721294757593,5.17798,3463.4,3462.6,2.88792]
[1721294757743,5.17798,3463.4,3462.7,0.55]
[1721294757944,5.17798,3463.4,3462.7,0.68664341]
[1721294758239,5.984499,3463.4,3462.7,0.68664341]
[1721294758681,5.984499,3463.4,3462.7,3.43785]
[1721294758881,5.984499,3463.4,3462.8,0.13664341]
[1721294759085,5.984499,3463.4,3462.9,0.55]
[1721294759691,5.984499,3463.4,3463.0,0.13664341]
[1721294760002,5.984499,3463.4,3463.1,0.55]
[1721294760300,5.17798,3463.4,3463.1,0.68664341]
[1721294760527,5.17798,3463.4,3463.2,0.55]
[1721294760673,2.88741,3463.3,3463.2,0.55]
[1721294761001,2.88741,3463.3,3463.2,0.68664341]
[1721294761179,3.693949,3463.3,3463.2,0.68664341]
[1721294762169,0.806539,3463.3,3463.2,0.68664341]
[1721294762393,2.88738,3463.4,3463.2,0.68664341]
[1721294763094,2.88738,3463.4,3463.2,0.55]
[1721294764183,2.88738,3463.4,3463.3,0.13636091]
[1721294764502,2.88738,3463.4,3462.9,0.55]
[1721294764717,2.88738,3463.4,3463.0,0.13636091]
[1721294764871,2.88738,3463.4,3463.1,0.55]
[1721294765403,2.88738,3463.4,3463.2,0.13636091]
[1721294765577,2.88738,3463.4,3462.8,0.55]
[1721294765775,2.88738,3463.4,3463.3,0.13636091]
[1721294765984,2.88738,3463.4,3462.8,0.55]
[1721294766212,2.88738,3463.4,3463.3,0.13636091]
[1721294766372,2.88738,3463.4,3462.8,0.55]
[1721294766582,2.88738,3463.4,3463.3,0.13636091]
[1721294766805,2.88738,3463.4,3462.8,0.55]
[1721294766985,2.88738,3463.4,3463.3,0.13636091]
[1721294767187,3.58587411,3463.4,3462.8,0.55]
[1721294767400,6.47328411,3463.4,3463.3,0.13636091]
[1721294767604,6.47328411,3463.4,3462.8,0.55]
[1721294769020,2.88742,3463.3,3462.8,0.55]
[1721294771118,3.58587411,3463.4,3462.9,0.13636091]
[1721294771119,2.88766,3463.0,3462.9,0.13636091]
[1721294771412,2.88779,3462.9,3462.7,0.55]
[1721294772591,1.51027173,3463.5,3462.7,2.9782]
[1721294772802,1.20828015,3464.8,3463.7,5.31524]
[1721294772987,4.09904015,3465.3,3464.1,1.971]
[1721294773177,2.88588,3465.2,3464.1,1.971]
[1721294773391,2.88588,3465.2,3464.2,0.55]
[1721294773618,2.89076,3465.3,3464.2,3.43661]
[1721294774009,2.89076,3465.3,3464.4,2.88644]
[1721294774336,0.577637,3465.2,3464.5,0.55]
[1721294774642,3.463487,3465.2,3464.5,0.55]
[1721294775006,3.0,3465.1,3464.5,0.55]
[1721294775740,3.0,3465.1,3464.5,3.43635]
[1721294775908,0.577637,3465.2,3464.5,3.43635]
[1721294776234,0.6468397,3465.1,3464.5,3.43635]
[1721294776799,0.64588685,3465.1,3464.5,3.43635]
[1721294777200,0.64588685,3465.1,3464.5,0.55]
[1721294777426,0.64588685,3465.1,3464.5,1.971]
[1721294777638,0.64588685,3465.1,3464.6,0.55]
[1721294778295,0.64588685,3465.1,3464.6,3.43632]
[1721294778729,0.64588685,3465.1,3464.7,2.3775]
[1721294778930,0.64588685,3465.1,3464.5,1.971]
[1721294778931,0.36508869,3465.0,3464.8,0.55]
[1721294779307,0.36508869,3465.0,3464.6,0.55]
[1721294780313,3.25112869,3465.0,3464.6,0.55]
[1721294780738,2.88617,3464.8,3464.6,0.55]
[1721294781516,2.88625,3464.7,3464.6,0.55]
[1721294781708,3.49999187,3464.7,3464.6,0.55]
[1721294781904,2.89076,3465.3,3464.6,5.40727]
[1721294782237,2.88592,3465.1,3464.6,0.55]
[1721294782437,2.88592,3465.1,3464.7,0.13041961]
[1721294782641,2.8861,3464.9,3464.7,0.13041961]
[1721294782813,2.8861,3464.9,3464.0,2.88682]
[1721294783005,3.463303,3464.9,3464.8,0.13041961]
[1721294783207,2.88617,3464.8,3464.2,2.88666]
[1721294783435,2.88617,3464.8,3464.3,0.55]
[1721294783830,0.577203,3464.9,3464.3,0.55]
[1721294784032,2.88615,3464.9,3464.3,0.55]
[1721294784436,2.89078,3465.3,3464.3,3.43658]
[1721294784634,2.89078,3465.3,3464.6,2.88632]
[1721294784820,2.89078,3465.3,3464.7,0.55]
[1721294785254,0.005,3465.3,3464.8,2.2857]
[1721294785410,0.005,3465.3,3464.9,0.55]
[1721294785609,0.005,3465.3,3464.7,3.43624]
[1721294786018,0.005,3465.3,3464.8,2.88616]
[1721294786236,0.005,3465.3,3464.9,0.55]
[1721294787350,0.005,3465.3,3464.8,2.88616]
[1721294787653,0.005,3465.3,3464.9,0.55]
[1721294787835,0.005,3465.3,3464.8,0.55]
[1721294788424,0.005,3465.3,3463.5,3.0]
[1721294788425,0.005,3465.3,3464.1,4.85773]
[1721294788680,2.88613,3464.9,3464.2,2.88666]
[1721294790328,3.463335,3464.9,3464.3,0.55]
[1721294790571,3.463335,3464.9,3464.1,3.43674]
[1721294790572,2.88617,3464.8,3464.1,3.43674]
[1721294793867,3.463335,3464.9,3464.1,0.55]
[1721294793868,2.88627,3464.7,3464.1,0.55]
[1721294794058,2.88641,3464.6,3464.0,0.55]
[1721294794260,2.88641,3464.6,3463.9,3.4369]
[1721294795586,2.88644,3464.5,3463.9,0.55]
[1721294795769,2.88644,3464.5,3463.8,0.55]
[1721294796257,2.88644,3464.5,3463.8,3.437]
[1721294796877,2.8866,3464.3,3463.8,0.55]
[1721294797179,2.88668,3464.2,3463.7,0.55]
[1721294797378,2.88668,3464.2,3463.6,3.43715]
[1721294797585,2.8508236,3464.2,3463.6,3.43715]
[1721294797887,2.8508236,3464.2,3463.7,0.12606862]
[1721294798046,2.8508236,3464.2,3463.8,0.55]
[1721294798246,2.8508236,3464.2,3463.8,0.67615249]
[1721294798446,2.8866,3464.3,3463.8,0.67615249]
[1721294798447,2.4557,3465.1,3463.9,2.4666]
[1721294798668,2.88613,3464.9,3464.0,0.55]
[1721294798952,2.88631,3464.7,3464.0,3.56294529]
[1721294799486,2.88613,3464.9,3464.2,2.88666]
[1721294799646,2.88617,3464.8,3464.2,2.88666]
[1721294799842,2.88617,3464.8,3464.3,0.55]
[1721294800047,0.005,3465.3,3464.4,5.485096]
[1721294800244,0.005,3465.3,3465.0,2.88597]
[1721294800478,0.005,3465.3,3465.1,0.55]
[1721294800859,0.005,3465.3,3465.2,0.12615529]
[1721294801056,0.005,3465.3,3465.2,0.67615529]
[1721294801307,0.005,3465.3,3465.2,1.08028784]
[1721294801612,0.005,3465.3,3465.2,3.96611784]
[1721294802565,0.005,3465.3,3465.2,3.56198529]
[1721294805496,0.005,3465.3,3465.2,6.44781529]
[1721294806218,0.005,3465.3,3465.2,3.56198529]
[1721294807289,0.005,3465.3,3465.2,0.67615529]
[1721294808087,0.005,3465.3,3465.2,3.56198529]
[1721294810015,0.005,3465.3,3465.2,0.67615529]
[1721294824313,5.677511,3465.3,3465.2,0.12615529]
[1721294824757,2.88593,3465.1,3464.4,5.77287]
[1721294825053,2.88593,3465.1,3464.5,0.67141234]
[1721294825654,2.88593,3465.1,3464.5,0.12141234]
[1721294825854,2.88627,3464.7,3464.0,2.88682]
[1721294826060,2.88627,3464.7,3464.6,0.1215125]
[1721294826256,5.77259,3464.7,3464.0,2.88677]
[1721294826473,5.77259,3464.7,3464.6,0.1215125]
[1721294826643,6.349849,3464.7,3464.6,0.1215125]
[1721294826961,6.349849,3464.7,3464.0,2.88681]
[1721294827259,5.7726,3464.7,3464.1,0.55]
[1721294827551,2.88633,3464.6,3464.1,0.6715125]
[1721294829257,2.8865,3464.4,3464.1,0.6715125]
[1721294833928,2.88659,3464.3,3464.1,0.6715125]
[1721294834122,2.88666,3464.2,3464.1,0.1215125]
[1721294834463,2.88666,3464.2,3463.2,2.88748]
[1721294834464,2.88692,3463.9,3463.2,2.88748]
[1721294834665,2.88692,3463.9,3463.0,2.88764]
[1721294834666,2.887,3463.8,3463.0,2.88764]
[1721294834867,2.887,3463.8,3463.1,3.610014]
[1721294835241,2.88724,3463.6,3462.9,2.3658]
[1721294835760,2.88724,3463.6,3462.9,5.25352]
[1721294836265,5.77458,3463.5,3462.8,2.88778]
[1721294836472,2.88727,3463.5,3462.8,2.88778]
[1721294836759,2.88733,3463.4,3462.9,0.55]
[1721294837166,2.88742,3463.3,3462.9,0.55]
[1721294837468,2.88742,3463.3,3462.2,2.88826]
[1721294837469,2.88767,3463.0,3462.2,2.88826]
[1721294837670,2.88767,3463.0,3462.2,5.77651]
[1721294837875,2.88767,3463.0,3462.2,2.88825]
[1721294838241,2.88776,3462.9,3462.2,2.88825]
[1721294838638,2.88776,3462.9,3462.3,2.88823]
[1721294838853,2.88776,3462.9,3462.4,0.577648]
[1721294839385,2.88776,3462.9,3462.5,0.55]
[1721294841079,2.88784,3462.8,3462.2,0.55]
[1721294842482,2.88792,3462.7,3462.3,0.11426636]
[1721294842643,2.88792,3462.7,3462.2,0.55]
[1721294842644,2.88792,3462.7,3462.4,0.55]
[1721294842839,2.88792,3462.7,3462.4,0.11461995]
[1721294843045,2.88792,3462.7,3462.5,0.55]
[1721294843392,2.88792,3462.7,3462.5,0.11462548]
[1721294843545,2.88792,3462.7,3462.6,0.55]
[1721294843944,2.88792,3462.7,3462.6,0.66462548]
[1721294845864,2.88792,3462.7,3462.6,0.11462548]
[1721294845865,5.77584,3462.7,3462.6,0.11462548]
[1721294846185,2.88824,3462.4,3461.7,5.88875]
[1721294846571,2.88824,3462.4,3461.8,0.11521932]
[1721294847379,2.88824,3462.4,3461.9,0.55]
[1721294847670,5.77613,3462.6,3462.0,0.11522485]
[1721294847981,2.88811,3462.5,3462.1,0.55]
[1721294848678,2.88811,3462.5,3461.8,2.88864]
[1721294848679,2.88811,3462.5,3462.2,0.1152359]
[1721294848939,2.88811,3462.5,3462.3,0.55]
[1721294849086,2.88811,3462.5,3462.3,0.6652359]
[1721294849287,2.88811,3462.5,3462.3,0.55]
[1721294850472,2.88817,3462.4,3462.3,0.55]
[1721294852599,2.88868,3461.8,3461.2,5.33523]
[1721294852816,2.88868,3461.8,3461.3,0.05777453]
[1721294853385,2.88868,3461.8,3461.4,0.11532988]
[1721294853597,2.88851,3462.0,3461.4,0.11532988]
[1721294854120,5.77708,3462.0,3461.4,0.11532988]
[1721294854314,5.77708,3462.0,3461.5,0.55]
[1721294854315,2.88851,3462.0,3461.5,0.55]
[1721294854610,2.88864,3461.9,3461.6,0.11532988]
[1721294854979,2.88864,3461.9,3461.7,0.55]
[1721294855410,2.88864,3461.9,3461.8,0.11557312]
[1721294855581,2.88864,3461.9,3461.8,0.66557312]
[1721294857616,2.88792,3462.7,3461.8,0.66557312]
[1721294857816,2.88846,3462.1,3461.9,0.55]
[1721294858320,2.88846,3462.1,3462.0,0.11557312]
[1721294858629,2.88846,3462.1,3462.0,0.66557312]
[1721294861191,5.77692,3462.1,3462.0,0.11557312]
[1721294861443,8.456566,3462.1,3462.0,0.11557312]
[1721294861593,2.88865,3461.9,3461.3,2.88901]
[1721294861804,2.88869,3461.8,3461.4,0.55]
[1721294862110,2.88869,3461.8,3461.4,0.11557312]
[1721294862289,2.88869,3461.8,3461.5,0.55]
[1721294862718,2.88869,3461.8,3461.6,0.11557312]
[1721294862935,2.88869,3461.8,3461.7,0.55]
[1721294863114,2.88869,3461.8,3461.7,0.66557312]
[1721294864332,2.85287092,3461.8,3461.7,0.66557312]
[1721294866323,2.8886,3461.9,3461.7,0.66557312]
[1721294870618,2.88867,3461.8,3461.7,0.66557312]
[1721294870823,2.88867,3461.8,3461.7,0.55]
[1721294871156,2.88877,3461.7,3461.4,0.55]
[1721294871527,2.88877,3461.7,3461.5,0.11568925]
[1721294871713,2.88877,3461.7,3461.6,0.55]
[1721294872245,2.88877,3461.7,3461.6,0.11568925]
[1721294872411,2.88877,3461.7,3461.6,0.55]
[1721294872611,2.88877,3461.7,3461.6,0.66568925]
[1721294873813,8.85154,3461.7,3461.6,0.11568925]
[1721294874148,8.85154,3461.7,3460.7,3.70758]
[1721294874149,2.88893,3461.5,3460.7,3.70758]
[1721294874348,2.88893,3461.5,3461.0,0.55]
[1721294874521,2.88893,3461.5,3461.0,0.66580538]
[1721294875045,5.77792,3461.5,3461.0,0.66580538]
[1721294875935,2.88902,3461.4,3461.0,0.66580538]
[1721294876860,3.818,3462.1,3461.1,0.818]
[1721294877016,12.63466,3462.2,3461.1,0.818]
[1721294877017,3.0,3462.0,3461.3,0.818]
[1721294877221,3.0,3462.1,3461.3,0.818]
[1721294877417,2.88888,3461.6,3461.4,0.55]
[1721294877959,2.88888,3461.6,3461.5,0.11602112]
[1721294878124,2.88871,3461.8,3461.5,1.48402112]
[1721294878325,2.88876,3461.7,3461.6,0.55]
[1721294878985,2.88876,3461.7,3461.6,0.66602112]
[1721294880460,5.88843,3462.1,3461.6,0.66602112]
[1721294880768,2.8885,3462.0,3461.7,0.818]
[1721294881067,2.8885,3462.0,3461.8,0.66595197]
[1721294881734,2.8885,3462.0,3461.8,0.55]
[1721294881955,5.88843,3462.1,3461.8,0.55]
[1721294882428,2.88852,3462.0,3461.8,0.55]
[1721294883037,5.88842,3462.1,3461.8,0.55]
[1721294884372,5.77626,3462.5,3461.8,0.55]
[1721294884559,2.8881,3462.5,3461.9,0.818]
[1721294884762,2.8883,3462.3,3462.0,0.55]
[1721294884965,2.8883,3462.3,3462.0,0.66595197]
[1721294885270,2.88842,3462.1,3462.0,0.66595197]
[1721294887945,5.77684,3462.1,3462.0,0.11595197]
[1721294888144,0.818,3462.2,3461.2,3.70715]
[1721294888145,2.88864,3461.9,3461.2,3.70715]
[1721294888373,2.88864,3461.9,3461.3,0.55]
[1721294888882,2.88868,3461.8,3461.3,0.55]
[1721294889579,2.88875,3461.7,3461.3,0.55]
[1721294889740,2.88892,3461.5,3460.9,2.88937]
[1721294889942,2.88892,3461.5,3461.0,0.55]
[1721294890142,2.88892,3461.5,3461.0,1.368]
[1721294890349,2.88892,3461.5,3461.0,0.55]
[1721294891666,2.88875,3461.7,3461.0,0.55]
[1721294891891,2.88885,3461.6,3461.0,0.55]
[1721294892055,2.88862,3461.9,3461.0,0.55]
[1721294892056,4.09674015,3462.1,3461.2,2.4575]
[1721294892248,4.09674015,3462.1,3461.3,3.43907]
[1721294892249,2.88846,3462.1,3461.3,3.43907]
[1721294892449,3.0,3462.0,3461.3,3.43907]
[1721294892677,4.09655015,3462.3,3461.6,2.88878]
[1721294892989,4.40223834,3462.5,3461.8,2.88866]
[1721294892990,2.8881,3462.5,3461.8,2.88866]
[1721294893159,2.8881,3462.5,3461.9,2.4575]
[1721294893361,1.20828015,3462.7,3462.1,2.8884]
[1721294893578,2.88782,3462.9,3462.2,1.33599]
[1721294893892,2.88788,3462.8,3462.2,0.55]
[1721294894185,2.88774,3463.0,3462.3,0.11573901]
[1721294894351,2.88776,3462.9,3462.4,0.55]
[1721294894887,2.88762,3463.1,3462.4,0.55]
[1721294895052,2.88769,3463.0,3462.5,0.11573901]
[1721294895248,2.88769,3463.0,3462.6,0.55]
[1721294895786,2.88769,3463.0,3462.7,0.11573901]
[1721294895962,2.88769,3463.0,3462.8,0.55]
[1721294896290,2.88769,3463.0,3462.9,0.11573901]
[1721294896501,2.88769,3463.0,3462.8,0.55]
[1721294896780,3.58603802,3463.0,3462.8,0.55]
[1721294896983,3.58603802,3463.0,3462.2,2.88832]
[1721294897285,3.58603802,3463.0,3462.3,0.55]
[1721294897483,3.58603802,3463.0,3462.3,0.66573901]
[1721294897895,2.88769,3463.0,3462.3,0.66573901]
[1721294898054,2.88786,3462.8,3462.3,0.55]
[1721294898255,2.88786,3462.8,3462.4,0.11573901]
[1721294898455,2.88786,3462.8,3462.5,0.55]
[1721294898864,2.88786,3462.8,3462.3,0.55]
[1721294899079,2.88786,3462.8,3462.6,0.11573901]
[1721294899388,2.88786,3462.8,3462.3,1.182681]
[1721294899550,2.88754,3463.2,3462.7,0.11552614]
[1721294899755,3.0,3463.3,3462.8,0.55]
[1721294899951,5.88743,3463.3,3462.8,0.55]
[1721294900150,5.88743,3463.3,3462.9,0.11552614]
[1721294900372,5.88743,3463.3,3463.0,0.55]
[1721294900565,5.88743,3463.3,3463.0,0.66552614]
[1721294902256,2.88743,3463.3,3463.0,0.66552614]
[1721294902565,2.88727,3463.5,3463.0,0.66552614]
[1721294902760,2.88739,3463.4,3463.0,0.66552614]
[1721294902955,2.88742,3463.3,3463.0,0.66552614]
[1721294906170,2.88727,3463.5,3463.0,0.66552614]
[1721294906171,5.7746,3463.5,3463.0,0.66552614]
[1721294906373,2.88739,3463.4,3463.0,0.66552614]
[1721294906776,2.88744,3463.3,3463.0,0.66552614]
[1721294907297,3.0,3463.8,3463.0,0.66552614]
[1721294907298,2.88712,3463.7,3463.0,0.66552614]
[1721294907505,2.35,3464.1,3463.1,2.88758]
[1721294907506,2.88704,3463.8,3463.1,2.88758]
[1721294907664,2.88704,3463.8,3463.2,0.55]
[1721294907864,2.88704,3463.8,3463.2,3.55300614]
[1721294908064,5.23679,3464.1,3463.2,3.55300614]
[1721294908360,2.88679,3464.1,3463.4,2.88732]
[1721294908588,3.0,3464.2,3463.5,0.55]
[1721294908872,3.0,3464.2,3463.5,3.55272614]
[1721294909281,3.0,3464.2,3463.6,2.88715]
[1721294909479,3.0,3464.2,3463.7,0.55]
[1721294909817,3.0,3464.2,3463.7,0.66552614]
[1721294912791,5.88666,3464.2,3463.7,0.66552614]
[1721294913313,3.0,3464.2,3463.7,0.66552614]
[1721294914533,2.35,3464.4,3463.7,0.66552614]
[1721294914740,2.2992,3464.9,3464.0,2.88678]
[1721294915038,2.2992,3464.9,3464.1,0.55]
[1721294915039,5.77266,3464.7,3464.1,0.55]
[1721294915245,2.88635,3464.6,3464.1,0.55]
[1721294915441,2.88635,3464.6,3464.2,0.11478553]
[1721294916328,2.88642,3464.5,3464.2,0.11478553]
[1721294919132,2.88658,3464.3,3464.2,0.11478553]
[1721294919334,2.88681,3464.1,3463.4,2.88728]
[1721294919525,5.77362,3464.1,3463.5,0.55]
[1721294920247,2.88681,3464.1,3463.5,0.55]
[1721294920410,2.88681,3464.1,3463.6,0.632453]
[1721294920606,2.88681,3464.1,3463.7,0.55]
[1721294922547,2.88681,3464.1,3463.6,0.55]
[1721294923732,5.77363,3464.1,3463.6,0.55]
[1721294924557,2.88685,3464.0,3463.6,0.55]
[1721294924886,2.88685,3464.0,3463.5,0.55]
[1721294925863,2.88685,3464.0,3463.6,2.4826]
[1721294926070,7.36,3464.9,3463.7,0.55]
[1721294926071,2.88633,3464.6,3463.7,0.55]
[1721294926271,2.88633,3464.6,3464.1,0.817]
[1721294926489,2.88633,3464.6,3464.2,0.55]
[1721294927370,2.88633,3464.6,3464.1,0.55]
[1721294927902,2.337,3464.5,3463.4,2.88732]
[1721294928089,2.337,3464.5,3463.1,10.37756]
[1721294928090,2.88689,3464.0,3463.1,10.37756]
[1721294928264,2.88718,3463.6,3462.8,2.4045]
[1721294928448,2.88718,3463.6,3462.7,2.88786]
[1721294928449,2.88733,3463.5,3462.7,2.88786]
[1721294928654,2.88736,3463.4,3462.7,2.88786]
[1721294929052,2.88741,3463.3,3462.5,5.26627]
[1721294929269,2.88741,3463.3,3462.5,5.792897]
[1721294929469,2.88751,3463.2,3462.5,5.26627]
[1721294929705,5.77509,3463.2,3462.5,5.26627]
[1721294930200,2.88758,3463.1,3462.5,2.3782]
[1721294931016,2.3732,3463.6,3462.6,0.55]
[1721294931017,2.88748,3463.3,3462.6,0.55]
[1721294931307,2.88748,3463.3,3462.6,3.43799]
[1721294931600,2.88707,3463.8,3462.7,2.88784]
[1721294931803,2.8872,3463.6,3462.9,2.88769]
[1721294931974,2.8872,3463.6,3463.0,0.55]
[1721294932382,2.8872,3463.6,3463.1,0.10493612]
[1721294932605,2.8872,3463.6,3463.2,0.55]
[1721294933218,2.8872,3463.6,3463.3,0.10493612]
[1721294933370,2.88707,3463.8,3463.4,0.55]
[1721294933569,5.88712,3463.7,3463.4,0.55]
[1721294933790,2.88718,3463.6,3463.5,0.10493612]
[1721294933990,2.88718,3463.6,3463.5,0.65493612]
[1721294936800,3.0,3463.7,3463.5,0.65493612]
[1721294937227,5.88709,3463.7,3463.5,0.65493612]
[1721294937375,6.995946,3463.7,3463.5,0.65493612]
[1721294937578,6.995946,3463.7,3463.5,0.55]
[1721294938192,2.88718,3463.6,3462.8,2.88783]
[1721294938392,2.88726,3463.5,3462.9,0.55]
[1721294938709,3.0,3463.7,3462.5,2.3782]
[1721294938710,2.8874,3463.4,3462.5,2.3782]
[1721294938874,2.88742,3463.3,3462.6,3.414584]
[1721294939774,2.88742,3463.3,3462.7,2.88791]
[1721294939994,2.88742,3463.3,3462.7,3.43791]
[1721294940995,2.88731,3463.5,3462.7,6.32577]
[1721294941374,2.88736,3463.4,3462.7,6.32577]
[1721294941575,2.88736,3463.4,3462.8,2.88781]
[1721294941776,2.88736,3463.4,3462.9,0.55]
[1721294942092,5.77445,3463.6,3462.9,0.55]
[1721294942291,2.88727,3463.5,3462.9,3.43774]
[1721294942488,3.0,3463.7,3463.1,2.88757]
[1721294942699,5.88704,3463.8,3463.2,0.55]
[1721294942900,8.77411,3463.8,3463.2,0.55]
[1721294943136,5.88704,3463.8,3463.2,0.55]
[1721294944453,7.09532015,3463.8,3463.2,0.55]
[1721294945321,2.88709,3463.7,3463.2,0.55]
[1721294945516,0.99824102,3463.6,3463.0,0.55]
[1721294945758,2.88709,3463.7,3463.0,3.43765]
[1721294946429,2.88717,3463.6,3463.0,3.43765]
[1721294947071,2.88717,3463.6,3463.0,0.55]
[1721294947237,2.88734,3463.4,3463.0,0.55]
[1721294947431,2.88734,3463.4,3463.1,0.10526222]
[1721294947759,2.88734,3463.4,3463.2,0.55]
[1721294948122,2.88734,3463.4,3463.2,0.65526222]
[1721294949836,2.88727,3463.5,3463.2,0.65526222]
[1721294951135,2.88735,3463.4,3463.2,0.65526222]
[1721294951670,3.37610533,3463.4,3463.2,0.65526222]
[1721294952254,2.88735,3463.4,3463.2,0.65526222]
[1721294952458,2.88735,3463.4,3463.2,0.64386222]
[1721294954570,6.98310015,3463.3,3463.2,0.10526222]
[1721294954889,2.8877,3463.0,3462.5,2.3782]
[1721294955373,2.8877,3463.0,3462.6,0.10216724]
[1721294955596,5.77544,3463.0,3462.6,0.10216724]
[1721294955752,5.77544,3463.0,3462.7,0.55]
[1721294955753,6.62539913,3463.0,3462.7,0.55]
[1721294955963,2.88779,3462.9,3462.7,0.64875447]
[1721294957446,2.88783,3462.8,3462.7,0.64875447]
[1721294958075,2.88783,3462.8,3462.7,0.09875447]
[1721294958291,3.67145763,3462.8,3462.7,0.09875447]
[1721294958443,3.67145763,3462.8,3462.1,2.2777]
[1721294958444,2.88798,3462.7,3462.1,2.2777]
[1721294958641,2.88798,3462.7,3462.2,0.55]
[1721294958874,2.88798,3462.7,3462.1,0.55]
[1721294960544,2.888,3462.6,3462.1,0.55]
[1721294961277,2.88809,3462.5,3462.1,0.55]
[1721294961581,2.88809,3462.5,3461.9,0.55]
[1721294962451,2.88809,3462.5,3462.0,0.09907806]
[1721294962654,2.88809,3462.5,3462.1,0.55]
[1721294963383,2.88809,3462.5,3462.2,0.09907806]
[1721294963567,2.88817,3462.4,3462.3,0.55]
[1721294963775,2.88817,3462.4,3461.9,0.55]
[1721294963944,2.88833,3462.2,3461.9,0.55]
[1721294964152,3.177323,3462.1,3461.6,0.55]
[1721294964462,3.177323,3462.1,3461.5,0.55]
[1721294965260,2.8886,3461.9,3461.5,0.55]
[1721294965598,2.8886,3461.9,3461.3,0.55]
[1721294966481,5.77726,3461.9,3461.3,0.55]
[1721294966859,2.8887,3461.8,3461.3,0.55]
[1721294968765,3.7263033,3461.8,3461.3,0.55]
[1721294970003,2.88856,3462.0,3461.4,2.2608]
[1721294970177,2.88856,3462.0,3461.5,0.55]
[1721294972076,0.288833,3462.1,3461.5,0.55]
[1721294972284,3.0,3462.2,3461.6,2.88878]
[1721294972467,3.0,3462.2,3461.7,0.55]
[1721294972667,3.0,3462.2,3461.7,3.43874]
[1721294975511,3.0,3462.2,3461.7,0.55]
[1721294977309,3.0,3462.2,3461.7,3.43874]
[1721294977504,3.0,3462.2,3461.8,0.09326736]
[1721294977809,3.9406425,3462.2,3461.9,0.55]
[1721294978185,3.9406425,3462.2,3462.0,0.09326736]
[1721294978387,3.9406425,3462.2,3462.1,0.55]
[1721294978794,3.9406425,3462.2,3461.8,0.55]
[1721294979318,3.9406425,3462.2,3461.9,0.09326736]
[1721294979515,3.9406425,3462.2,3462.0,0.55]
[1721294980076,3.9406425,3462.2,3462.1,0.09326736]
[1721294980298,3.9406425,3462.2,3462.1,0.64326736]
[1721294980590,3.9406425,3462.2,3462.1,0.55]
[1721294980948,3.9406425,3462.2,3462.1,0.09326736]
[1721294981229,3.9406425,3462.2,3462.1,0.55]
[1721294981434,6.8289725,3462.2,3462.1,0.09326736]
[1721294981617,2.88853,3462.0,3461.4,2.88899]
[1721294981793,3.94208025,3462.0,3461.5,0.09326736]
[1721294982911,3.94208025,3462.0,3461.6,0.55]
[1721294983295,3.94208025,3462.0,3461.7,0.09347037]
[1721294983498,3.94208025,3462.0,3461.8,0.55]
[1721294983832,3.94208025,3462.0,3461.9,0.09347037]
[1721294984909,3.94208025,3462.0,3461.8,0.55]
[1721294985111,3.94208025,3462.0,3461.6,0.55]
[1721294985335,3.94208025,3462.0,3461.9,0.09347037]
[1721294985539,3.94208025,3462.0,3461.6,0.55]
[1721294985839,3.94208025,3462.0,3461.7,0.09347037]
[1721294986020,3.94208025,3462.0,3461.8,0.55]
[1721294986232,3.94208025,3462.0,3461.9,0.09347037]
[1721294986533,3.94208025,3462.0,3461.6,0.55]
[1721294986855,3.94208025,3462.0,3461.7,0.09347037]
[1721294987021,3.94208025,3462.0,3461.8,0.55]
[1721294987219,3.94208025,3462.0,3461.9,0.09347861]
[1721294987400,3.94208025,3462.0,3461.8,0.55]
[1721294987596,3.94208025,3462.0,3461.9,0.09347861]
[1721294987826,3.94208025,3462.0,3461.6,0.55]
[1721294988256,3.94208025,3462.0,3461.7,0.09347861]
[1721294988547,3.94208025,3462.0,3461.8,0.55]
[1721294988954,3.94208025,3462.0,3461.9,0.09347861]
[1721294989314,3.94208025,3462.0,3461.6,0.55]
[1721294989726,3.94208025,3462.0,3461.7,0.09347861]
[1721294989929,3.94208025,3462.0,3461.8,0.55]
[1721294990358,3.94208025,3462.0,3461.9,0.09347861]
[1721294990659,3.94208025,3462.0,3461.6,0.55]
[1721294991153,3.94208025,3462.0,3461.7,0.09347861]
[1721294991355,3.94208025,3462.0,3461.8,0.55]
[1721294991555,1.05355025,3462.0,3461.8,0.55]
[1721294991713,1.05355025,3462.0,3461.9,0.09347861]
[1721294992464,1.05355025,3462.0,3461.6,0.55]
[1721294992620,3.0,3462.2,3461.9,0.09347861]
[1721294992821,3.0,3462.3,3462.0,0.55]
[1721294993033,3.0,3462.3,3462.1,0.09347861]
[1721294993234,4.37690621,3462.3,3462.1,0.09347861]
[1721294993949,7.26517621,3462.3,3462.1,0.09347861]
[1721294996064,7.26517621,3462.3,3462.0,0.55]
[1721294996264,7.26517621,3462.3,3461.7,0.55]
[1721294996759,10.15349621,3462.3,3461.8,0.09347861]
[1721294996957,1.28122383,3462.2,3461.9,0.55]
[1721294997161,4.16956383,3462.2,3461.9,0.55]
[1721294997362,4.16956383,3462.2,3462.0,0.09346487]
[1721294997663,4.16956383,3462.2,3461.7,0.55]
[1721294997664,4.16956383,3462.2,3462.1,0.55]
[1721294997844,7.16956383,3462.2,3461.7,0.55]
[1721294998158,4.16956383,3462.2,3461.8,0.09346487]
[1721294998344,4.16956383,3462.2,3461.9,0.55]
[1721294998821,2.88851,3462.0,3461.7,0.55]